[Event "1st Henriquez Urena Memorial 2022"]
[Site "Santo Domingo"]
[Date "2022.09.18"]
[Round "3.5"]
[White "Ferreira Fernandez, Sergio"]
[Black "Guzman, Christopher"]
[Result "1/2-1/2"]
[ECO "E18"]
[WhiteElo "2119"]
[BlackElo "2252"]
[Annotator "TA"]
[PlyCount "90"]
[EventDate "2022.09.16"]
[EventType "swiss"]
[EventCountry "DOM"]
[SourceTitle "playchess.com"]
[Source "ChessBase"]
[SourceQuality "1"]
[TimeControl "5400+30"]

{[%evp 19,90,8,0,-6,-5,-16,-11,-26,-2,-19,-11,-50,-50,-106,-96,-108,-108,-150,-137,-153,-68,-118,-88,-104,-89,-118,-116,-256,-181,-178,-52,-50,-51,-59,-28,-37,-39,-31,0,-130,-132,-100,-117,-112,-78,-91,-86,-141,-75,-66,-66,-216,-45,-46,-41,-44,45,-149,-143,-151,-151,-151,-151,-151,-158,-152,-109,-126,-111,-124,-118,-138,-127]} 1. d4 {[%emt 0:04:09]} Nf6 {[%emt 0:01:13]} 2. Nf3 {[%emt 0:00:05]} e6 {[%emt 0:00:07]} 3. c4 {[%emt 0:00:06]} b6 {[%emt 0:00:08]} 4. g3 {[%emt 0:00:01]} Bb7 {[%emt 0:00:08]} 5. Bg2 {[%emt 0:00:01]} Be7 {[%emt 0:00:09]} 6. O-O {[%emt 0:00:12]} O-O {[%emt 0:00:04]} 7. Nc3 {[%emt 0:00:19]} d5 {[%emt 0:00:02]} 8. Ne5 {[%emt 0:00:13]} Nbd7 {[%emt 0:00:23]} 9. cxd5 {[%emt 0:00:05]} Nxd5 {[%emt 0:00:30]} 10. Nxd5 {[%emt 0:00:22]} exd5 {[%emt 0:00:03]} 11. Nxd7 {[%emt 0:04:16] E18: Queen's Indian: Old Main Line (4 g3 Bb7 5 Bg2 Be7 6 0-0 0-0 7 Nc3).} Qxd7 {[%emt 0:00:02] [#]} 12. Qb3 $146 {[%emt 0:00:48]} ({Predecessor:} 12. Bf4 Rac8 13. Qd3 Rfe8 14. Rac1 Bf6 15. b3 Qe6 16. Rc2 c6 17. Re1 c5 18. dxc5 bxc5 {1-0 (44) Jimenez,D (2110)-Guzman,C (2259) Santo Domingo 2016}) 12... Rfd8 {[%emt 0:02:15]} 13. a4 {[%emt 0:04:40] The position is equal.} Ba6 {[%emt 0:04:12]} 14. Qf3 {[%emt 0:00:10]} c5 {[%emt 0:01:02]} 15. dxc5 {[%emt 0:02:19]} bxc5 {[%emt 0:00:13]} 16. Rd1 {[%emt 0:00:06]} (16. Bf4 $15) 16... d4 {[%emt 0:05:09]} 17. Bd2 {[%emt 0:07:05]} Rab8 {[%emt 0:00:35]} 18. Ba5 {[%emt 0:03:35]} Rdc8 {[%emt 0:01:13]} ({Of course not} 18... Rxb2 $6 19. Bxd8 Qxd8 20. Rdb1 $11) 19. Rd2 {[%emt 0:00:17]} Bc4 {[%emt 0:09:04]} (19... Bb7 $17 20. e4 Bc6) 20. Qe4 {[%emt 0:20:05]} ({Better is} 20. e3 $15) 20... Bf6 {[%emt 0:03:07]} 21. e3 {[%emt 0:23:35]} Bb3 {[%emt 0:13:10]} 22. exd4 {[%emt 0:09:49]} cxd4 {[%emt 0:00:45]} 23. Bf3 {[%emt 0:11:45]} (23. Qf4 $17) 23... Qd6 {[%emt 0:00:33] Hoping for ...Qc5.} ({Not} 23... Bxa4 24. Bg4 Qb5 25. Bxc8 Rxc8 26. Rxd4 Bxd4 27. Qxd4 Qxa5 28. Rxa4 $11) 24. Bc3 {[%emt 0:03:43][%cal Rc3d4]} Rd8 {[%emt 0:00:18]} (24... Rc4 $19 {White must now prevent ...Qc5.} 25. Rd3 Bc2) 25. Ba5 $15 {[%emt 0:00:40]} Re8 {[%emt 0:01:18]} 26. Qc6 {[%emt 0:00:37]} Qxc6 {[%emt 0:04:36]} (26... Qf8 {with more complications.} 27. Qd7 Qc5 28. Bc7 Rbc8) 27. Bxc6 {[%emt 0:00:01]} Rec8 $36 {[%emt 0:00:12][%cal Be8c8,Bc8c2,Bc2c1][%mdl 2080] Inhibits Bc7. Black has the initiative.} 28. Bb5 {[%emt 0:00:58]} Rc2 {[%emt 0:00:48]} 29. Ra3 {[%emt 0:02:11]} (29. Rxc2 $11 Bxc2 30. Bd2) 29... Rc1+ $17 {[%emt 0:02:29]} 30. Kg2 {[%emt 0:00:01]} Bd5+ {[%emt 0:00:08]} 31. f3 {[%emt 0:00:28]} Rbc8 {[%emt 0:00:03]} 32. Bd3 {[%emt 0:01:59]} h5 {[%emt 0:00:38]} 33. Re2 {[%emt 0:00:52]} ({White should try} 33. Rf2) 33... h4 {[%emt 0:00:54]} (33... g5 $142 $1 {aiming for ...g4.} 34. Bd2 Rd1) 34. Bd2 {[%emt 0:00:51]} Rd1 {[%emt 0:00:28]} 35. Bf4 {[%emt 0:00:48]} (35. gxh4 $15 Bxh4 36. Bb4) 35... h3+ $2 {[%emt 0:00:40]} (35... g5 $1 $19 {[%cal Rg5f4]} 36. Bf5 gxf4 37. Bxc8 d3 38. Re8+ Kg7) 36. Kxh3 $15 {[%emt 0:00:02]} Bxf3 {[%emt 0:00:25] Strongly threatening ...Rxd3.} 37. Rd2 {[%emt 0:00:01]} g5 {[%emt 0:01:15] [#]} (37... Rxd2 $15 38. Bxd2 Bd5) 38. Bh7+ $1 {[%emt 0:00:33]} Kxh7 $17 {[%emt 0:00:09][%csl Gf3][%cal Rg5g4]} 39. Rxf3 {[%emt 0:00:01] [#]} Rxd2 {[%emt 0:00:42]} 40. Bxd2 {[%emt 0:00:01][%mdl 4096] Endgame KRB-KRB} Kg6 {[%emt 0:51:20]} 41. Kg4 {[%emt 0:03:10]} Rc2 {[%emt 0:00:00][%csl LRb2,LRd2]} 42. Rd3 {[%emt 0:00:30]} Rxb2 {[%emt 0:00:00]} 43. h4 {[%emt 0:00:30] [#]} gxh4 $1 {[%emt 0:00:00]} 44. gxh4 {[%emt 0:00:00]} Be5 {[%emt 0:02:00]} 45. h5+ {[%emt 0:00:00]} Kf6 {[%emt 0:00:00] Weighted Error Value: White=0.35/Black=0.33} 1/2-1/2

[Event "1st Henriquez Urena Memorial 2022"]
[Site "Santo Domingo"]
[Date "2022.09.18"]
[Round "3.6"]
[White "Michelen Rodriguez, Victor Isaac"]
[Black "Orizondo, Hugo"]
[Result "1-0"]
[ECO "D38"]
[WhiteElo "2228"]
[BlackElo "2034"]
[Annotator "TA"]
[PlyCount "65"]
[EventDate "2022.09.16"]
[EventType "swiss"]
[EventCountry "DOM"]
[SourceTitle "playchess.com"]
[Source "ChessBase"]
[SourceQuality "1"]
[TimeControl "5400+30"]

{[%evp 12,65,16,18,27,17,17,0,0,0,0,0,19,12,23,-62,-54,-64,-48,-43,0,0,31,0,27,-17,-17,-18,-22,-21,-22,-20,-28,-19,-13,-20,-9,-15,0,0,0,-1,73,42,105,0,16,30,14,6,29995,29996,29996,29997,29997,29998]} 1. c4 {[%emt 1:31:00]} e6 {[%emt 0:00:10]} 2. Nc3 d5 {[%emt 1:31:20]} 3. d4 {[%emt 0:01:00]} Nf6 {[%emt 0:00:00]} 4. Nf3 {[%emt 0:00:30]} Bb4 {[%emt 0:01:00]} 5. cxd5 {[%emt 0:00:30]} exd5 {[%emt 0:00:00]} 6. Qa4+ Nc6 {[%emt 0:01:00]} 7. Bg5 {[%emt 0:01:00]} O-O {[%emt 0:00:00] D38: Queen's Gambit Declined: Ragozin Defence (4 Nf3 Bb4).} 8. e3 {[%emt 0:00:00]} h6 {[%emt 0:00:00]} 9. Bh4 {[%emt 0:00:00]} g5 {[%emt 0:00:00] The position is equal.} 10. Bg3 {[%emt 0:00:00]} Ne4 {[%emt 0:02:00]} 11. Qc2 {[%emt 0:02:00]} Bf5 {[%emt 0:00:30]} 12. Bd3 {[%emt 0:00:30]} Re8 {[%emt 0:00:30] [#]} 13. O-O-O $146 {[%emt 0:00:30]} ({White should try} 13. O-O $11) ({Predecessor:} 13. O-O Nxg3 14. fxg3 Bxd3 15. Qxd3 Re6 16. Rae1 Bxc3 17. bxc3 Qe7 18. Qb5 Rd8 19. h3 Rxe3 20. Qxb7 {1-0 (37) Rajkovic,D (2355)-Radovic,S (2091) Veliko Gradiste 2017}) 13... Bxc3 $15 {[%emt 0:00:00]} 14. bxc3 Qe7 {[%emt 0:00:00]} 15. Kb1 b5 {[%emt 0:01:30]} 16. Ka1 {[%emt 0:01:30]} Qa3 {[%emt 0:00:00]} 17. Qb3 Qa5 {[%emt 0:01:00]} 18. Ne5 {[%emt 0:01:00]} Nxe5 19. Bxe5 {[#]} Rxe5 $1 {[%emt 0:01:00]} 20. dxe5 {[%emt 0:01:00] Strongly threatening Bxe4.} Nc5 {[%emt 0:00:00]} 21. Qc2 {[%emt 0:00:00]} (21. Qb4 $2 Qxb4 22. cxb4 Nxd3 $19) 21... Nxd3 {[%emt 0:00:00]} 22. Rxd3 {[%emt 0:00:00]} Re8 {[%emt 0:00:00] next ...c5 is good for Black.} 23. f4 $1 {[%emt 0:00:00]} Re6 {[%emt 0:00:00]} 24. Rhd1 {[%emt 0:00:00]} Rc6 {[%emt 0:00:00]} 25. Qb2 {[%emt 0:00:00]} Bxd3 {[%emt 0:00:00]} 26. Rxd3 $11 {[%emt 0:00:00][%mdl 4096] Endgame KQR-KQR} Rc5 {[%emt 0:00:00]} (26... Kf8 $11) 27. Qd2 {[%emt 0:00:00]} (27. fxg5 $5 {[%cal Re5e6]} Qa4 28. Rd4 $16 (28. gxh6 Qe4 $14)) 27... Qa3 {[%emt 0:00:00] [#]} (27... Qa4 $14) 28. Kb1 {[%emt 0:00:00]} ({Don't play} 28. c4 $6 Qa4 $11) (28. fxg5 $1 $16 {e4 is the strong threat.} b4 29. c4 (29. gxh6 Rxc3 30. Rxc3 bxc3 $11)) 28... Rc4 {[%emt 0:00:00]} 29. fxg5 {[%emt 0:00:00]} hxg5 {[%emt 0:01:21]} 30. e4 {[%emt 0:00:00]} Rxe4 $2 {[%emt 0:01:38][%mdl 8192]} (30... Qe7 $11) 31. Qxg5+ {[%emt 0:00:00] White mates.} Kf8 {[%emt 0:00:38]} 32. Qd8+ {[%emt 0:00:00]} Kg7 {[%emt 0:00:17]} 33. Rg3+ {[%emt 0:00:00] Weighted Error Value: White=0.19 (very precise) /Black=0.32} 1-0

[Event "1st Henriquez Urena Memorial 2022"]
[Site "Santo Domingo"]
[Date "2022.09.18"]
[Round "3.7"]
[White "Polanco Nunez, Yoel Starling"]
[Black "Subervi, Jonathan Sigfredo"]
[Result "1-0"]
[ECO "A05"]
[WhiteElo "2199"]
[BlackElo "2124"]
[Annotator "TA"]
[PlyCount "59"]
[EventDate "2022.09.16"]
[EventType "swiss"]
[EventCountry "DOM"]
[SourceTitle "playchess.com"]
[Source "ChessBase"]
[SourceQuality "1"]
[TimeControl "5400+30"]

{[%evp 11,59,4,28,12,28,12,56,52,54,55,64,23,30,35,37,5,8,0,21,6,11,11,12,0,127,131,130,125,147,147,152,69,122,122,182,119,138,136,131,118,132,125,285,279,699,697,687,500,1737,1653]} 1. Nf3 {[%emt 0:00:37]} c5 {[%emt 0:06:19]} 2. g3 {[%emt 0:00:31]} b6 {[%emt 0:00:32]} 3. Bg2 {[%emt 0:00:05]} Bb7 {[%emt 0:00:08]} 4. O-O {[%emt 0:00:24]} Nf6 {[%emt 0:00:43]} 5. d3 {[%emt 0:03:08]} g6 {[%emt 0:05:27]} 6. e4 {[%emt 0:00:57]} d6 {[%emt 0:00:15]} 7. a4 {[%emt 0:00:27] A05: Réti Opening: 1 Nf3 Nf6.} a6 {[%emt 0:10:20]} 8. Nc3 {[%emt 0:00:06]} Nbd7 {[%emt 0:00:48]} 9. Nd2 {[%emt 0:04:27][%cal Bf3d2,Bd2c4,Bc4e3][%mdl 32] White is slightly better.} Qc7 {[%emt 0:07:02]} 10. f4 {[%emt 0:01:44]} Bg7 {[%emt 0:08:11] [#]} 11. Qe2 $146 {[%emt 0:00:47][%cal Oe4e5] [#] aiming for e5!} (11. Nc4 $5 {[%cal Re4e5]}) ({Predecessor:} 11. Nc4 O-O 12. e5 Ne8 13. Nd5 Bxd5 14. Bxd5 Rd8 15. e6 Nef6 16. Ne3 Nb8 17. f5 {1-0 (90) Fauland,A (2449)-Durarbayli,V (2597) Legnica 2013}) 11... O-O {[%emt 0:18:42]} 12. Nc4 {[%emt 0:05:40]} e6 {[%emt 0:04:47]} 13. Ne3 {[%emt 0:18:36] Against d5} Rae8 {[%emt 0:10:50][%cal Od6d5]} 14. g4 {[%emt 0:00:50]} d5 {[%emt 0:02:43]} 15. e5 {[%emt 0:03:57]} d4 {[%emt 0:00:54][%csl LRc3,LRe3]} 16. Bxb7 {[%emt 0:01:14]} Qxb7 {[%emt 0:09:04]} 17. exf6 {[%emt 0:00:52]} Bxf6 {[%emt 0:10:04] [#]} (17... Nxf6 $11 18. Ne4 (18. g5 Nd5 $11) 18... Nxe4) 18. Ne4 $1 $16 {[%emt 0:00:28] Black must now prevent Nd6.} (18. g5 $6 Be7 $11) 18... dxe3 {[%emt 0:01:11]} 19. Nd6 $36 {[%emt 0:01:02][%mdl 2048] Keeping Black busy.} Qc6 {[%emt 0:00:38]} 20. Nxe8 {[%emt 0:00:04]} Rxe8 {[%emt 0:00:02]} 21. Rf3 {[%emt 0:06:12]} (21. Bxe3 $6 Bxb2 22. Ra2 Bc3 $11) (21. Qxe3 $2 Bd4 22. Rf2 Bxe3 $19) (21. c3 $16) 21... Rd8 {[%emt 0:01:47]} (21... Bd4 22. c3 $16 (22. Bxe3 Bxb2 23. Ra2 Bc3 $11)) ({Better is} 21... b5 $14) 22. c3 {[%emt 0:00:12]} (22. Rxe3 $6 Bd4 $11) 22... e5 {[%emt 0:00:02]} (22... Bg7 $16 23. Bxe3 (23. Rxe3 Qd5 $16) 23... Nf6) 23. Rxe3 {[%emt 0:01:03]} (23. Qxe3 exf4 24. Rxf4 (24. Qxf4 Ne5 $11) 24... Ne5 $14) (23. Bxe3 $18 Re8 24. Bd2) 23... exf4 {[%emt 0:00:20]} 24. Re8+ {[%emt 0:00:02]} Rxe8 {[%emt 0:00:41]} 25. Qxe8+ {[%emt 0:00:02]} Kg7 {[%emt 0:00:10]} 26. Bxf4 {[%emt 0:04:35] And now g5 would win.} Qd5 {[%emt 0:01:16] Against g5. A mistake that costs the game.} (26... Qf3 $16) 27. Qe4 $18 {[%emt 0:00:32]} Qb3 {[%emt 0:00:01]} (27... Qe6 28. Qxe6 fxe6) 28. g5 {[%emt 0:02:23] White is clearly winning.} Bd8 {[%emt 0:00:01]} 29. Be5+ {[%emt 0:00:40]} Kg8 {[%emt 0:00:32]} (29... Kf8 $142 30. Qa8 Nxe5 31. Qxd8+ Kg7 32. Qf6+ Kg8 33. Qxe5 a5) 30. Qa8 {[%emt 0:00:50][%csl LRa6,LRd8] Weighted Error Value: White=0.27 (precise) /Black=0.59} 1-0

[Event "1st Henriquez Urena Memorial 2022"]
[Site "Santo Domingo"]
[Date "2022.09.18"]
[Round "3.10"]
[White "Crispin Ferreras, Darvi Abraham"]
[Black "Arvelo Leo, Gian Carlo"]
[Result "1/2-1/2"]
[ECO "B38"]
[WhiteElo "2160"]
[BlackElo "2174"]
[Annotator "TA"]
[PlyCount "90"]
[EventDate "2022.09.16"]
[EventType "swiss"]
[EventCountry "DOM"]
[SourceTitle "playchess.com"]
[Source "ChessBase"]
[SourceQuality "1"]
[TimeControl "5400+30"]

{[%evp 17,90,52,47,45,47,36,47,41,52,37,48,37,31,-81,-81,-109,-109,-92,-110,-107,-110,-118,-113,-113,-102,-126,-125,-137,-110,-166,-156,-161,-135,-126,-136,-207,-212,-256,-238,-486,-474,-498,-469,-864,-859,-838,-824,-801,-778,-29984,-29985,-29983,0,0,0,0,0,0,0,0,0,0,0,0,0,0,0,0,0,0,0,0,0,0,0]} 1. Nf3 {[%emt 0:04:07]} Nf6 {[%emt 0:02:07]} 2. c4 {[%emt 0:01:22]} c5 {[%emt 0:00:24]} 3. Nc3 {[%emt 0:00:13]} g6 {[%emt 0:07:46]} 4. d4 {[%emt 0:00:44]} cxd4 {[%emt 0:01:24]} 5. Nxd4 {[%emt 0:00:03]} Bg7 {[%emt 0:01:35]} 6. e4 {[%emt 0:01:19]} O-O {[%emt 0:02:02]} 7. Be2 {[%emt 0:00:34]} Nc6 {[%emt 0:00:34]} 8. Be3 {[%emt 0:00:11]} d6 {[%emt 0:00:44]} 9. O-O {[%emt 0:00:17]} Bd7 {[%emt 0:00:32]} 10. Nxc6 {[%emt 0:12:57] B38: Sicilian: Maroczy Bind with 5...Bg7 and 7...0-0.} Bxc6 {[%emt 1:18:22]} 11. Qc2 {[%emt 0:00:21]} a5 {[%emt 0:00:00]} 12. Rfd1 {[%emt 0:15:03] [#] White is slightly better.} Qc7 $146 {[%emt 0:00:00]} ({Predecessor:} 12... Nd7 13. Rac1 Re8 14. Rd2 b6 15. Nd5 Nc5 16. f3 Ra7 17. Bd4 Bxd5 18. cxd5 Bh6 {½-½ (38) Mastalerz,X (2038)-Delaney,J (2227) Roux 2009}) 13. Rac1 {[%emt 0:02:47]} Rfc8 {[%emt 0:00:00]} 14. Qb1 {[%emt 0:00:24]} a4 {[%emt 0:00:00]} 15. c5 {[%emt 0:08:27]} (15. f3 $1 $14 {was forced to keep a grip.}) 15... dxc5 $17 {[%emt 0:00:00][%cal Oc5c4]} 16. Nd5 {[%emt 0:23:15]} Bxd5 {[%emt 0:00:00]} 17. exd5 {[%emt 0:00:02]} b6 {[%emt 0:00:00][%cal Bb7b6,Bb6b5][%mdl 32]} 18. Bf3 {[%emt 0:01:04][%cal Od5d6]} Ra7 {[%emt 0:00:00]} 19. g3 {[%emt 0:02:07]} Ne8 {[%emt 0:00:00]} 20. h4 {[%emt 0:02:55]} Nd6 {[%emt 0:00:00]} 21. Bf4 {[%emt 0:02:51]} Qd7 {[%emt 0:00:00]} 22. Qc2 {[%emt 0:01:25]} b5 {[%emt 0:00:00]} 23. Kg2 {[%emt 0:01:39]} (23. Qe2 $17) 23... h5 {[%emt 0:00:00]} 24. Qe2 {[%emt 0:03:11]} a3 {[%emt 0:00:00]} 25. b3 {[%emt 0:00:11]} Rac7 {[%emt 0:00:00]} 26. g4 {[%emt 0:00:36]} (26. Re1 $17) 26... c4 $19 {[%emt 0:00:00][%cal Bc5c4,Bc4b3,Bb3b2][%mdl 32]} 27. gxh5 {[%emt 0:08:35] [#]} cxb3 $1 {[%emt 0:01:04]} 28. hxg6 $2 {[%emt 0:00:25]} (28. axb3 {was necessary.} Rxc1 29. Bxc1) 28... Rxc1 {[%emt 0:02:30]} 29. gxf7+ {[%emt 0:00:16]} Nxf7 {[%emt 0:00:53]} 30. Bg4 {[%emt 0:03:56]} (30. Bxc1 $142 Ne5 31. d6 Nxf3 32. Qxf3) 30... Qxg4+ {[%emt 0:02:21]} 31. Qxg4 {[%emt 0:00:01]} b2 {[%emt 0:00:21] Strongly threatening ...R8c4.} 32. Bxc1 {[%emt 0:04:28]} Rxc1 {[%emt 0:01:28]} 33. Qf5 {[%emt 0:00:02]} Rxd1 {[%emt 0:01:33]} 34. Qc8+ {[%emt 0:00:01] [#]} Kh7 $2 {[%emt 0:01:16]} (34... Nd8 $1 {[%mdl 512] mates} 35. Qxd8+ Kh7 36. Qb6 b1=Q 37. Qe6 Rg1+ 38. Kf3 Re1 39. Qxe1 Qxe1 40. h5 Bd4 41. d6 e6 42. Kg3 Qxf2+ 43. Kg4 Be5 44. h6 Kxh6 45. Kh3 Qg3#) 35. Qc2+ $11 {[%emt 0:00:01] The position is equal.} Kg8 {[%emt 0:00:29]} 36. Qxd1 {[%emt 0:00:02]} Nd6 {[%emt 0:00:33]} 37. Qc2 {[%emt 0:00:19]} Nc4 {[%emt 0:00:20]} 38. Qg6 {[%emt 0:02:33]} Ne5 {[%emt 0:00:40]} 39. Qe8+ {[%emt 0:00:08]} Kh7 {[%emt 0:00:30]} 40. Qxb5 {[%emt 0:00:02] And now Kf1 would win.} Nc4 {[%emt 0:00:29]} 41. d6 {[%emt 0:00:23]} exd6 {[%emt 0:00:23]} 42. Qh5+ {[%emt 0:00:03]} Kg8 {[%emt 0:00:32]} 43. Qe8+ {[%emt 0:00:02]} Kh7 {[%emt 0:01:08]} 44. Qe4+ {[%emt 0:01:14]} Kh8 $1 {[%emt 0:00:00]} 45. Qe8+ {[%emt 0:00:03]} Kh7 {[%emt 0:01:00] White happily takes the draw.  Weighted Error Value: White=0.49/Black=0.15 (very precise)} 1/2-1/2

[Event "1st Henriquez Urena Memorial 2022"]
[Site "Santo Domingo"]
[Date "2022.09.18"]
[Round "4.1"]
[White "Peralta, Fernando"]
[Black "Quezada Perez, Yasser"]
[Result "1/2-1/2"]
[ECO "D26"]
[WhiteElo "2600"]
[BlackElo "2580"]
[Annotator "ChessBase"]
[PlyCount "27"]
[EventDate "2022.09.16"]
[EventType "swiss"]
[EventCountry "DOM"]
[SourceTitle "playchess.com"]
[Source "ChessBase"]
[SourceQuality "1"]
[TimeControl "5400+30"]

1. d4 d5 2. c4 dxc4 3. e3 Nf6 4. Bxc4 e6 5. Nf3 c5 6. O-O Nc6 7. Qe2 cxd4 8. Rd1 Be7 9. exd4 O-O 10. a3 Nd5 11. Nc3 {[%emt 0:05:30]} Bf6 {[%emt 0:05:30]} 12. Ne4 {[%emt 1:31:00]} Nce7 {[%emt 0:24:25]} 13. Nxf6+ {[%emt 0:00:00]} gxf6 {[%emt 0:00:30]} 14. Bg5 {[%emt 0:00:00]} 1/2-1/2

[Event "1st Henriquez Urena Memorial 2022"]
[Site "Santo Domingo"]
[Date "2022.09.18"]
[Round "4.3"]
[White "Leon Hoyos, Manuel"]
[Black "Araujo Sanchez, Josue"]
[Result "1/2-1/2"]
[ECO "B50"]
[WhiteElo "2491"]
[BlackElo "2281"]
[Annotator "ChessBase"]
[PlyCount "71"]
[EventDate "2022.09.16"]
[EventType "swiss"]
[EventCountry "DOM"]
[SourceTitle "playchess.com"]
[Source "ChessBase"]
[SourceQuality "1"]
[TimeControl "5400+30"]

1. e4 {[%emt 0:00:04]} c5 {[%emt 0:09:30]} 2. Nf3 {[%emt 0:00:07]} d6 {[%emt 0:00:23]} 3. Bc4 {[%emt 0:00:07]} Nf6 {[%emt 0:00:57]} 4. d3 {[%emt 0:00:11]} Nc6 {[%emt 0:00:20]} 5. O-O {[%emt 0:00:13]} Bg4 {[%emt 0:02:42]} 6. h3 {[%emt 0:04:28]} Bxf3 {[%emt 0:01:18]} 7. Qxf3 {[%emt 0:00:05]} g6 {[%emt 0:00:13]} 8. c3 {[%emt 0:12:32]} Bg7 {[%emt 0:01:20]} 9. Be3 {[%emt 0:00:17]} O-O {[%emt 0:01:26]} 10. Nd2 {[%emt 0:02:05]} Ne5 {[%emt 0:08:10]} 11. Qe2 {[%emt 0:01:39]} Nxc4 {[%emt 0:00:32]} 12. dxc4 {[%emt 0:05:29]} Qb6 {[%emt 0:01:05]} 13. Rab1 {[%emt 0:18:14]} Qc6 {[%emt 0:07:21]} 14. Bg5 {[%emt 0:00:21]} e6 {[%emt 0:01:07]} 15. Rbd1 {[%emt 0:05:27]} Rfe8 {[%emt 0:03:48]} 16. Rfe1 {[%emt 0:03:44]} h6 {[%emt 0:06:30]} 17. Bh4 {[%emt 0:01:46]} Nd7 {[%emt 0:07:18]} 18. Bg3 {[%emt 0:10:33]} Nb6 {[%emt 0:01:35]} 19. Nb3 {[%emt 0:03:53]} Rad8 {[%emt 0:01:57]} 20. Rd2 {[%emt 0:10:14]} Qa4 {[%emt 0:11:34]} 21. Rxd6 {[%emt 0:07:00]} Rxd6 {[%emt 0:01:02]} 22. Bxd6 {[%emt 0:00:03]} Qxa2 {[%emt 0:01:40]} 23. Nxc5 {[%emt 0:00:49]} Nxc4 {[%emt 0:01:00]} 24. e5 {[%emt 0:03:03]} b6 {[%emt 0:01:13]} 25. Ne4 {[%emt 0:01:59]} Qb3 {[%emt 0:02:02]} 26. Nd2 {[%emt 0:01:02]} Nxd2 {[%emt 0:01:00]} 27. Qxd2 {[%emt 0:00:02]} Rc8 {[%emt 0:10:37]} 28. Re4 {[%emt 0:01:54]} Rc4 {[%emt 0:04:21]} 29. Re3 {[%emt 0:00:44]} Qa4 {[%emt 0:00:49]} 30. Bb4 {[%emt 0:01:59]} a5 {[%emt 0:00:56]} 31. Qd3 {[%emt 0:03:42]} Rc8 {[%emt 0:01:15]} 32. Qa6 {[%emt 0:00:28]} Rd8 {[%emt 0:01:32]} 33. Kh2 {[%emt 0:01:33]} Rd5 {[%emt 0:01:56]} 34. g3 {[%emt 0:00:52]} Qc6 {[%emt 0:01:50]} 35. Bd6 {[%emt 0:00:31]} Rd1 {[%emt 0:01:41]} 36. f3 {[%emt 0:00:03]} 1/2-1/2

[Event "1st Henriquez Urena Memorial 2022"]
[Site "Santo Domingo"]
[Date "2022.09.18"]
[Round "4.5"]
[White "Guzman, Christopher"]
[Black "Mesa Cruz, Juan Carlos"]
[Result "1-0"]
[ECO "B92"]
[WhiteElo "2252"]
[BlackElo "2119"]
[Annotator "ChessBase"]
[PlyCount "79"]
[EventDate "2022.09.16"]
[EventType "swiss"]
[EventCountry "DOM"]
[SourceTitle "playchess.com"]
[Source "ChessBase"]
[SourceQuality "1"]
[TimeControl "5400+30"]

1. e4 {[%emt 0:04:38]} c5 {[%emt 0:00:14]} 2. Nf3 {[%emt 0:00:05]} d6 {[%emt 0:00:09]} 3. d4 {[%emt 0:00:02]} cxd4 {[%emt 0:00:12]} 4. Nxd4 {[%emt 0:00:02]} Nf6 {[%emt 0:00:12]} 5. Nc3 {[%emt 0:00:02]} a6 {[%emt 0:00:09]} 6. Be2 {[%emt 0:00:09]} e5 {[%emt 0:00:14]} 7. Nb3 {[%emt 0:00:02]} Be6 {[%emt 0:00:22]} 8. Be3 {[%emt 0:00:14]} Nbd7 {[%emt 0:00:23]} 9. g4 {[%emt 0:01:35]} Rc8 {[%emt 0:02:21]} 10. f3 {[%emt 0:00:09]} Nb6 {[%emt 0:10:46]} 11. g5 {[%emt 0:01:51]} Nfd7 {[%emt 0:05:46]} 12. Qd2 {[%emt 0:02:48]} Qc7 {[%emt 0:23:41]} 13. O-O-O {[%emt 0:07:54]} d5 {[%emt 0:12:12]} 14. exd5 {[%emt 0:02:14]} Bxd5 {[%emt 0:00:12]} 15. Kb1 {[%emt 0:01:13]} Be6 {[%emt 0:02:02]} 16. Ne4 {[%emt 0:00:16]} Nd5 {[%emt 0:01:55]} 17. Bd3 {[%emt 0:06:00]} Nb4 {[%emt 0:07:02]} 18. h4 {[%emt 0:04:14]} Nxd3 {[%emt 0:06:31]} 19. Qxd3 {[%emt 0:00:23]} Bb4 {[%emt 0:06:28]} 20. c3 {[%emt 0:02:12]} Be7 {[%emt 0:01:44]} 21. h5 {[%emt 0:01:32]} a5 {[%emt 0:04:18]} 22. g6 {[%emt 0:08:53]} fxg6 {[%emt 0:02:08]} 23. hxg6 {[%emt 0:00:13]} h6 {[%emt 0:00:13]} 24. Bg5 {[%emt 0:00:19]} a4 {[%emt 0:03:10]} 25. Na5 {[%emt 0:10:18]} Nc5 {[%emt 0:02:15]} 26. Nxc5 {[%emt 0:00:24]} Bxc5 {[%emt 0:00:07]} 27. Qb5+ {[%emt 0:01:54]} Bd7 {[%emt 0:02:43]} 28. Qxb7 {[%emt 0:00:30]} Qxb7 {[%emt 0:01:22]} 29. Nxb7 {[%emt 0:00:03]} Rf8 {[%emt 0:00:33]} 30. Rhe1 {[%emt 0:02:46]} Rf5 {[%emt 0:04:55]} 31. Bh4 {[%emt 0:06:48]} Rc7 {[%emt 0:00:40]} 32. Rd5 {[%emt 0:00:42]} Rxb7 {[%emt 0:00:50]} 33. Rxc5 {[%emt 0:00:38]} Rb5 {[%emt 0:00:08]} 34. Rc7 {[%emt 0:00:13]} Rxf3 {[%emt 0:00:48]} 35. Rd1 {[%emt 0:00:07]} Bf5+ {[%emt 0:00:03]} 36. Kc1 {[%emt 0:00:02]} Bd3 {[%emt 0:00:40]} 37. Rxg7 {[%emt 0:00:28]} e4 {[%emt 0:00:08]} 38. Rg1 {[%emt 0:01:27]} Rf1+ {[%emt 0:01:14]} 39. Rxf1 {[%emt 0:00:13]} Bxf1 {[%emt 0:00:04]} 40. Rg8+ {[%emt 0:00:08]} 1-0